Cogmind - Beta 13 @@@ ROGUE MODE // 2024.05.02 @ 22:13:45 Player: sercli123 Result: Destroyed by G-47 Trooper with Particle Gun Performance ------------- Evolutions (0) 0 Regions Visited (2) 400 Robots Destroyed (36) 180 Value Destroyed (700) 700 Prototype IDs (4) 80 Alien Tech Used (0) 0 Bonus (0) 0 TOTAL SCORE: 1360 Bonus ------- None Cogmind --------- Core Integrity 0/250 Matter 280/300 Energy 125/125 System Corruption 0% Temperature Cool (14) Movement Treading (160) Location -10/Mines Parts ------- > --- POWER (1) -------- Light Ion Engine > --- PROPULSION (2) --- Light Treads Light Treads > --- UTILITY (2) ------ Large Storage Unit Targeting Computer > --- WEAPON (2) ------- Light Assault Rifle Grenade Launcher > --- INVENTORY (15) --- Light Treads Aluminum Leg Aluminum Leg Aluminum Leg Heat Sink Huge Storage Unit Small Battery (100) Medium Matter Pod (100) ECM Suite Weapon Shielding Light Armor Plating Small Laser Beam Cannon Grenade Launcher Peak State ------------ > --- POWER ------------ Light Ion Engine > --- PROPULSION ------- Aluminum Leg Aluminum Leg > --- UTILITY ---------- Medium Matter Pod Improved Terrain Scanner > --- WEAPON ----------- Small Laser Light Assault Rifle > --- INVENTORY -------- Aluminum Leg Heat Sink Seismic Detector Small Laser [Rating: 9] Favorites ----------- Power Light Ion Engine Engine Light Ion Engine Propulsion Aluminum Leg Treads Light Treads Leg Aluminum Leg Utility Heat Sink Device Heat Sink Storage Large Storage Unit Processor Targeting Computer Weapon Light Assault Rifle Energy Gun Small Laser Energy Cannon Beam Cannon Ballistic Gun Light Assault Rifle Launcher Grenade Launcher Build | -11 -10 -10 ------- Run | Yrd Mat Min Slots Evolved . | . . . Power . | . . . Propulsion . | . . . Utility . | . . . Weapon . | . . . Parts Attached 29 | 9 14 6 Power 4 | 1 2 1 Engine 4 | 1 2 1 Core . | . . . Reactor . | . . . Propulsion 8 | 2 4 2 Treads 2 | . . 2 Leg 6 | 2 4 . Wheel . | . . . Hover . | . . . Flight . | . . . Utility 8 | 4 3 1 Device 4 | 3 1 . Storage 3 | 1 2 . Processor 1 | . . 1 Hackware . | . . . Protection . | . . . Artifact . | . . . Weapon 9 | 2 5 2 Energy Gun 3 | 1 2 . Energy Cannon 1 | . 1 . Ballistic Gun 2 | 1 . 1 Ballistic Cannon . | . . . Launcher 3 | . 2 1 Special Weapon . | . . . Impact Weapon . | . . . Slashing Weapon . | . . . Piercing Weapon . | . . . Special Melee Weapon . | . . . Unidentified Prototypes . | . . . Parts Lost 3 | . 1 2 Power 2 | . 1 1 Propulsion . | . . . Utility . | . . . Weapon 1 | . . 1 Highest Loss Streak 2 | . 1 2 To Critical Strikes . | . . . Average Slot Usage (%) 98 | . 98 97 Engine 12 | . 12 12 Treads 2 | . . 9 Leg 25 | . 28 18 Device 13 | . 14 9 Storage 14 | . 14 14 Energy Gun 6 | . 6 7 Energy Cannon 11 | . 11 10 Ballistic Gun 6 | . 7 3 Launcher 3 | . 3 6 Naked Turns . | . . . Heaviest Build 32 | 8 31 32 Greatest Support 40 | 20 20 40 Greatest Overweight (x) 1 | . 1 1 Average Overweight (x) . | . . . Largest Inventory Capacity 25 | 5 25 15 Average Capacity 9 | 5 12 15 Most Carried 15 | 5 15 15 Average Carried 8 | 4 9 13 Final Capacity 15 | 5 15 15 Final Carried 14 | 5 14 14 Class Distribution -------------------- 89% | Mutant 10% | Scavenger-Mutant Dominant Class ---------------- Mutant | -10/Materials Mutant | -10/Mines Resources | -11 -10 -10 ----------- Run | Yrd Mat Min Matter Collected 839 | 365 317 157 Remotely . | . . . Salvage Created 821 | 82 539 200 Parts 61 | 9 40 12 Haulers Intercepted . | . . . Recyclers Shooed . | . . . Parts Field Recycled . | . . . Retrieved Matter . | . . . Parts Self-Destructed . | . . . Prevented . | . . . Kills | -11 -10 -10 ------- Run | Yrd Mat Min Combat Hostiles Destroyed 20 | 1 11 8 Guns 4 | 1 1 2 Cannons 5 | . 3 2 AOE 10 | . 6 4 Classes Destroyed 9 | 3 5 1 Worker 1 | 1 . . Builder 5 | . 5 . Tunneler 2 | 1 1 . Recycler 3 | . 3 . Operator 2 | . 2 . Watcher 3 | . 3 . Swarmer 9 | . 6 3 Grunt 9 | 1 5 3 Sentry 2 | . . 2 Best Kill Streak 5 | 2 5 3 Combat Bots Only 3 | 1 3 3 Max Kills in Single Turn 3 | 1 3 1 Gunslinging . | . . . Exploded 2 | . 2 1 Melee . | . . . Uniques/NPCs Destroyed . | . . . Combat | -11 -10 -10 -------- Run | Yrd Mat Min Hostile Shots Fired 96 | 2 43 51 Missed 32 | 2 13 17 Damage Taken 928 | . 402 526 Core 254 | . 64 190 Absorbed by Shields . | . . . Core Remaining (%) 100 | 100 . . Volleys Fired 63 | 6 39 18 Largest 2 | 2 2 2 Hottest 100 | 60 100 100 Shots Fired 123 | 12 78 33 Gun 55 | 12 34 9 Cannon 40 | . 27 13 Launcher 28 | . 17 11 Special . | . . . Kinetic 32 | 6 21 5 Thermal 46 | 6 27 13 Explosive 28 | . 17 11 Electromagnetic 17 | . 13 4 Robot Hit Streak 8 | 8 8 8 Robot Miss Streak 4 | 1 4 1 Penetration Max . | . . . Secondary Targets . | . . . Shots Hit Robots 76 | 9 46 21 Core Hits 57 | 5 37 15 Critical Kills 1 | . 1 . Critical Parts Destroyed . | . . . Critical Strikes 2 | . 2 . Meltdown 1 | . 1 . Corrupt 1 | . 1 . Melee Attacks . | . . . Impact . | . . . Slashing . | . . . Piercing . | . . . Sneak Attacks . | . . . Combat Hostiles . | . . . Follow-up Attacks . | . . . Damage Inflicted 2060 | 86 1441 533 Guns 413 | 86 242 85 Cannons 422 | . 280 142 Explosions 1210 | . 919 291 Melee . | . . . Ramming 15 | . . 15 Kinetic 153 | 31 80 42 Thermal 594 | 55 397 142 Explosive 1093 | . 802 291 Electromagnetic 205 | . 162 43 Impact . | . . . Slashing . | . . . Piercing . | . . . Highest Corruption . | . . . Average Corruption . | . . . Corruption Purged . | . . . Corruption Blocked . | . . . Overload Shots . | . . . Overflow Damage 20 | . 20 . Projectiles . | . . . Explosions 20 | . 20 . Melee . | . . . Knockbacks . | . . . Impact . | . . . Kinetic . | . . . Secondary . | . . . Self-Inflicted Damage 132 | . 56 76 Shots 5 | . 2 3 Rammed 1 | . . 1 Targets Rammed 4 | . . 4 Kicked 3 | . . 3 Crushed . | . . . Highest Temperature 60 | 40 52 60 Average Temperature 18 | 20 17 20 Received Heat Transfer 300 | . 165 135 Siege Activations . | . . . Robots Corrupted . | . . . Combat Hostiles . | . . . Parts Fried . | . . . Impact Corruptions . | . . . Robots Melted 1 | . 1 . Combat Hostiles 1 | . 1 . Parts Melted 4 | . 3 1 Heat Transferred 1163 | 125 742 296 Parts Sabotaged . | . . . Parts Stolen . | . . . Parts Stripped . | . . . Power Chain Reactions 3 | . 3 . Alert | -11 -10 -10 ------- Run | Yrd Mat Min Peak Influence 362 | 30 362 177 Initial 3 | . . 3 Average 70 | 6 109 96 Maximum Alert Level 1 | . 1 . Low Security (%) 93 | 100 87 100 Level 1 6 | . 12 . Level 2 . | . . . Level 3 . | . . . Level 4 . | . . . Level 5 . | . . . High Security . | . . . Max Security . | . . . Squads Dispatched 1 | . 1 . Investigation . | . . . Extermination . | . . . Reinforcement 1 | . 1 . Assault . | . . . Garrison . | . . . Intercept . | . . . Searches Triggered . | . . . Construction Impeded . | . . . Haulers Reinforced . | . . . Active Scanning Responses . | . . . Cargo Convoy Interrupts . | . . . Stealth | -11 -10 -10 --------- Run | Yrd Mat Min Distress Signals . | . . . Communications Jammed . | . . . Distress Signals . | . . . Times Spotted 26 | 1 17 8 Peak Tracking Total 3 | 1 3 3 Tactical Retreats 1 | . . 1 Traps | -11 -10 -10 ------- Run | Yrd Mat Min Traps Triggered . | . . . Indirectly . | . . . Trap Hack Attempts . | . . . Triggered . | . . . Disarmed . | . . . Reprogrammed . | . . . Reused . | . . . Traps Extracted . | . . . Installed . | . . . Triggered . | . . . Machines | -11 -10 -10 ---------- Run | Yrd Mat Min Machines Disabled 7 | . 3 4 Max in Single Turn 2 | . 1 2 Machines Repaired . | . . . Machines Dismantled . | . . . Machines Sabotaged . | . . . Overloaded Fab Kills . | . . . Hacking | -11 -10 -10 --------- Run | Yrd Mat Min Machines Accessed 5 | . 5 . Terminals 5 | . 5 . Fabricators . | . . . Repair Stations . | . . . Recycling Units . | . . . Scanalyzers . | . . . Garrison Access . | . . . Total Hacks 21 | . 21 . Successful 8 | . 8 . Failed 13 | . 13 . Catastrophic 1 | . 1 . Database Lockouts . | . . . Manual . | . . . Terminals 21 | . 21 . Fabricators . | . . . Repair Stations . | . . . Recycling Units . | . . . Scanalyzers . | . . . Garrison Access . | . . . Terminal Hacks 8 | . 8 . Record 1 | . 1 . Prototype ID Bank 2 | . 2 . Alert Level 1 | . 1 . Transport Status 1 | . 1 . Reinforcement Status 1 | . 1 . Hauler Manifests 1 | . 1 . Zone Layout 1 | . 1 . Fabricator Hacks . | . . . Repair Station Hacks . | . . . Recycling Unit Hacks . | . . . Scanalyzer . | . . . Garrison Access Hacks . | . . . Unauthorized Hacks . | . . . Terminals . | . . . Fabricators . | . . . Repair Stations . | . . . Recycling Units . | . . . Scanalyzers . | . . . Garrison Access . | . . . Data Cores Recovered 1 | . 1 . Used . | . . . Hacking Detections 4 | . 4 . Full Trace Events 3 | . 3 . Feedback Events . | . . . Feedback Blocked . | . . . Robot Schematics Acquired . | . . . Robots Built . | . . . Authchips . | . . . Time . | . . . Total Robot Build Rating . | . . . Part Schematics Acquired . | . . . Parts Built . | . . . Authchips . | . . . Time . | . . . Total Part Build Rating . | . . . Parts Repaired . | . . . Time . | . . . Parts Recycled . | . . . Recycled Matter . | . . . Retrieved Matter . | . . . Retrieved Components . | . . . Parts Scanalyzed . | . . . Part Schematics Acquired . | . . . Parts Damaged . | . . . Bothacking | -11 -10 -10 ------------ Run | Yrd Mat Min Used RIF Installer . | . . . Robots Hacked . | . . . Non-combat . | . . . Combat . | . . . Robot Hacks Applied . | . . . Relay Couplers Released . | . . . Fabnet Peak Effective % . | . . . Robots Rewired . | . . . Allies Hacked . | . . . Hacks Repelled . | . . . Allies | -11 -10 -10 -------- Run | Yrd Mat Min Total Allies . | . . . Largest Group . | . . . Highest-Rated Group . | . . . Highest-Rated Ally . | . . . Total Orders . | . . . Ally Attacks . | . . . Total Damage . | . . . Kills . | . . . Allies Corrupted . | . . . Allies Melted . | . . . Intel | -11 -10 -10 ------- Run | Yrd Mat Min Robot Analysis Total . | . . . Derelict Logs Recovered 1 | . . 1 Drone Launches . | . . . Drone Recoveries . | . . . Exploration | -11 -10 -10 ------------- Run | Yrd Mat Min Turns Passed 3847 | 1410 1911 526 Spaces Moved 1729 | 522 989 218 Core 17 | 17 . . Treads 74 | . . 74 Legs 1638 | 505 989 144 Wheels . | . . . Hover . | . . . Flight . | . . . Fastest Speed 50 | 50 120 160 Average Speed 153 | 117 166 179 Slowest Speed 190 | 120 190 190 Overloaded Moves . | . . . Propulsion Burnouts . | . . . Robots Hopped . | . . . Cave-ins Triggered . | . . . Exploration Rate (%) 51 | 32 94 28 Regions Visited 2 Branch Regions 1 Pre-discovered Areas . | . . . Known Exits Taken . | . . . Unknown Exits Taken 2 | 1 1 . Scrap Searched . | . . . Spaces Dug . | . . . Terrain Destroyed 193 | . 117 76 Melee . | . . . Projectile . | . . . AOE 193 | . 117 76 Terrain Rammed . | . . . Walls Destroyed . | . . . Machines Disabled . | . . . Actions | -11 -10 -10 --------- Run | Yrd Mat Min Total 2806 | 1305 1184 317 Wait 934 | 757 110 67 Move 1727 | 521 988 218 Hop . | . . . Pick Up 36 | 12 21 3 Fast Attach . | . . . Attach 12 | 7 3 2 Detach 1 | . 1 . Swap 17 | 2 11 4 Drop 12 | . 11 1 Fire 63 | 6 39 18 Melee . | . . . Ram . | . . . Kick 3 | . . 3 Crush 1 | . . 1 Escape Stasis . | . . . Rewire . | . . . Trap . | . . . Miscellaneous . | . . . Route ------- -11/Scrapyard -10/Materials (discovered 5 exits: [*Mat x3] / [*Min x2]) -10/Mines (discovered 1 exit: [*Mat]) History --------- Turn | Location | Event 2 | -11/Scrapyard | Met Revision 17 79 | -11/Scrapyard | Discovered new exit (range 8) 1411 | -11/Scrapyard | Entered Materials 1412 | -10/Materials | Build established: Mutant 1600 | -10/Materials | Discovered new exit (range 15) 1905 | -10/Materials | Discovered new exit (range 15) 2387 | -10/Materials | Discovered new exit (range 16) 2810 | -10/Materials | Discovered new exit (range 16) 2927 | -10/Materials | Build established: Scavenger-Mutant 3134 | -10/Materials | Discovered new exit (range 9) 3312 | -10/Materials | Build established: Mutant 3322 | -10/Materials | Entered Mines 3444 | -10/Mines | Discovered new exit (range 10) 3593 | -10/Mines | Core integrity fell below 50% 3611 | -10/Mines | Core integrity fell below 20% 3844 | -10/Mines | Learned location of 2 exits from Materials 3848 | -10/Mines | Destroyed by G-47 Trooper with Particle Gun Last Messages --------------- 03680_ U-05 Engineer builds a Wall. 03685_ U-05 Engineer lays Concrete. 03685_ Slammed into U-05 Engineer. 03686_ U-05 Engineer lays Concrete. 03693_ Acquired 34 matter. 03733_ Acquired 2 matter. 03742_ G-47 Trooper destroyed. 03746_ The unstable cave ceiling collapses. 03748_ G-34 Mercenary destroyed. 03756_ The unstable cave ceiling collapses. 03796_ Acquired 15 matter. 03799_ Acquired 24 matter. 03812_ Acquired 10 matter. 03814_ Acquired 16 matter. 03815_ Acquired 13 matter. 03844_ Acquired derelict log, extracted data. Data stored: Materials exits (x2). 03847_ G-34 Mercenary destroyed. 03848_ T-07 Excavator is excavating. [Achievement: First Step to Greatness] Map ----- +----------------------------------------------------+ | ???????????????????????????????????????????????? " | | ???????????????????????????????????????????????? " | | ???????????????????????????????????????????????? " | | ???????????????????????????????????????????????? | | ???????????????????????????????????????????????## | | ???????????????????????????????????????????????# # | | ??????????????????????????????????????????????##" | | ??????????????????????????????????????????????# = | | ??????????????????????????????????????????????# | | ??????????????????????????????????????????????# | | ????????????????????????????????????####??????###+ | | ??????????????????????????????????### ##?????# | | ?????????????????????????????###### ##????# | | ????????????????????????????## ## ##??## | | ????????????????????????##### #??# | | ????????????????????????# ### #??# | | ????????????????????????# ### ####?## #??## | | ????????????????????????# #?# #?????# #???## | | ????????????????????????# #?## ####### #????## | | ????????????????????????# #??### #?????# | | ????????????????????????# #???## #######????## | | ????????????????????????# #??## ##?????????## | | ????????????????????????# #??# ###????????# | | ?????????? ????????????# #??# ####?????# | | ????????? g ##### #??# # ####### | | ????????? @#?## # = ## | | ????????? [% #?# # ##### ## | | ?????????? ########?## #### ###???# | | ???????????# t#??????????????##???#####?????##### | | ????????????????????????????????????????????????## | | ??????????????????????????????????????????#######? | | ????????????????????????????????????????### ## | | ????????????????????????????????????????# # | | ???????????????????????????????????????# | | ????????????????????????????????????????# ### | | ????????????????????????????????????????#??#####?? | | ?????????????????????????????????????????????????? | | ?????????????????????????????????????????????????? | | ?????????????????????????????????????????????????? | | ?????????????????????????????????????????????????? | | ?????????????????????????????????????????????????? | | | | | | | | | | | | | | | | | | | +----------------------------------------------------+ Best States ------------- Heat Dissipation 35 Energy Generation 10 Energy Capacity 250 Matter Stores 400 Matter Capacity 400 Sight Range 16 Terrain Scan Range 16 Terrain Scan Density 10 Evasion (%) 55 Targeting Accuracy 5 Recoil Reduction 2 Item Schematics ----------------- None Robot Schematics ------------------ None Fabricated ------------ Nothing Alien Tech Used ----------------- None Achievements -------------- First Step to Greatness It's Just You Challenges ------------ None Game ------ Seed BiometalLongswordInterpreter Manual? 0 Play Time 00:35:08 Cumulative 4.5 hours Start 2024.05.02 @ 21:36:21 End 2024.05.02 @ 22:13:45 Sessions 1 Manual Loads 0 Difficulty Rogue Special Mode None Game No. 2 Rogue 2 Adventurer 0 Explorer 0 Win Type - Total 0 Types 0/0/0/0/0/0/0/0/0 Lore% 1 Gallery% 5 Achievement% 6 Wizard Run 0 Options --------- Layout 0 ASCII 0 Keyboard 0 Movement Mouse Keybinds 0 Fullscreen 1 Font 18/SmallcapsGlow Map View 38x25 Zoom Use 93% Tactical HUD 1 Map Filters NONE Filters NONE Steam 0 RUN: 8bc5cd7c-16e8-4ba6-97ed-13734c5ccc94